[Event "Titled Tuesday Blitz July 4 Late 2023"]
[White "BenchGM"]
[Black "Santos, Rafael Ventura Dos"]
[BlackFideId "2122227"]
[WhiteElo "2359"]
[BlackElo "2270"]
[Result "0-1"]
[Round "9"]
[TimeControl "180+2"]
[Date "2023.07.04"]
[WhiteClock "0:00:15"]
[BlackClock "0:01:02"]
[Board "108"]

1. e4 {[%clk 0:03:00]}  c5 {[%clk 0:02:59]} 2. Nf3 {[%clk 0:03:00]}  g6 {[%clk 0:03:00]} 3. d4 {[%clk 0:02:59]}  cxd4 {[%clk 0:03:00]} 4. Nxd4 {[%clk 0:03:00]}  Bg7 {[%clk 0:03:01]} 5. c4 {[%clk 0:03:00]}  Nc6 {[%clk 0:03:01]} 6. Be3 {[%clk 0:02:59]}  Nf6 {[%clk 0:03:02]} 7. Nc3 {[%clk 0:02:59]}  O-O {[%clk 0:03:02]} 8. Be2 {[%clk 0:02:57]}  d6 {[%clk 0:03:01]} 9. O-O {[%clk 0:02:57]}  Nxd4 {[%clk 0:03:01]} 10. Bxd4 {[%clk 0:02:53]}  a5 {[%clk 0:03:01]} 11. h3 {[%clk 0:02:49]}  Bd7 {[%clk 0:03:00]} 12. Rc1 {[%clk 0:02:36]}  Bc6 {[%clk 0:02:59]} 13. Qc2 {[%clk 0:02:36]}  Nd7 {[%clk 0:02:30]} 14. Bxg7 {[%clk 0:02:30]}  Kxg7 {[%clk 0:02:31]} 15. Rfd1 {[%clk 0:02:30]}  Nc5 {[%clk 0:02:30]} 16. e5 {[%clk 0:02:21]}  Qc7 {[%clk 0:02:20]} 17. exd6 {[%clk 0:02:19]}  exd6 {[%clk 0:02:19]} 18. Nd5 {[%clk 0:02:19]}  Bxd5 {[%clk 0:02:19]} 19. Rxd5 {[%clk 0:02:12]}  Rfe8 {[%clk 0:02:18]} 20. Bf3 {[%clk 0:02:05]}  Re6 {[%clk 0:02:14]} 21. Rcd1 {[%clk 0:01:42]}  Qe7 {[%clk 0:01:38]} 22. Qd2 {[%clk 0:01:33]}  Ra6 {[%clk 0:01:35]} 23. Bg4 {[%clk 0:01:04]}  f5 {[%clk 0:01:34]} 24. Bf3 {[%clk 0:00:54]}  h5 {[%clk 0:01:31]} 25. Rd4 {[%clk 0:00:39]}  Qf6 {[%clk 0:01:25]} 26. a3 {[%clk 0:00:26]}  a4 {[%clk 0:01:24]} 27. Bd5 {[%clk 0:00:25]}  Re7 {[%clk 0:01:18]} 28. Bf3 {[%clk 0:00:25]}  Nb3 {[%clk 0:01:02]} 29. Rxd6 {[%clk 0:00:18]}  Nxd2 {[%clk 0:01:02]} 30. Rxf6 {[%clk 0:00:18]}  Nxf3+ {[%clk 0:01:02]} 31. gxf3 {[%clk 0:00:15]}  Rxf6 {[%clk 0:01:02]} 0-1


[Site "https://www.chess.com"]

[Event "Titled Tuesday Blitz July 4 Late 2023"]
[White "Schachpanda_Youtube"]
[Black "Vaglio Munoz, Jaime"]
[BlackFideId "6500145"]
[WhiteElo "2220"]
[BlackElo "2301"]
[Result "0-1"]
[Round "9"]
[TimeControl "180+2"]
[Date "2023.07.04"]
[WhiteClock "0:00:02"]
[BlackClock "0:01:11"]
[Board "109"]

1. e4 {[%clk 0:03:00]}  c5 {[%clk 0:02:59]} 2. d4 {[%clk 0:03:00]}  cxd4 {[%clk 0:02:58]} 3. c3 {[%clk 0:03:01]}  Qa5 {[%clk 0:02:58]} 4. Nf3 {[%clk 0:02:59]}  Nc6 {[%clk 0:02:58]} 5. Bc4 {[%clk 0:02:47]}  e6 {[%clk 0:02:54]} 6. O-O {[%clk 0:02:45]}  Nf6 {[%clk 0:02:53]} 7. cxd4 {[%clk 0:02:19]}  d5 {[%clk 0:02:46]} 8. exd5 {[%clk 0:02:17]}  Nxd5 {[%clk 0:02:45]} 9. Re1 {[%clk 0:02:01]}  Be7 {[%clk 0:02:43]} 10. Bd2 {[%clk 0:01:51]}  Qd8 {[%clk 0:02:39]} 11. Nc3 {[%clk 0:01:48]}  Nb6 {[%clk 0:02:33]} 12. Bd3 {[%clk 0:01:38]}  O-O {[%clk 0:02:22]} 13. Qe2 {[%clk 0:01:28]}  g6 {[%clk 0:02:08]} 14. Bh6 {[%clk 0:01:22]}  Re8 {[%clk 0:02:06]} 15. Rad1 {[%clk 0:01:22]}  Bf6 {[%clk 0:02:03]} 16. d5 {[%clk 0:01:03]}  Nb4 {[%clk 0:01:55]} 17. Bb5 {[%clk 0:00:49]}  Bd7 {[%clk 0:01:52]} 18. Ne4 {[%clk 0:00:29]}  exd5 {[%clk 0:01:42]} 19. Bxd7 {[%clk 0:00:21]}  Rxe4 {[%clk 0:01:33]} 20. Qxe4 {[%clk 0:00:17]}  dxe4 {[%clk 0:01:31]} 21. Bc6 {[%clk 0:00:09]}  Nxc6 {[%clk 0:01:10]} 22. Rxd8+ {[%clk 0:00:02]}  Rxd8 {[%clk 0:01:11]} 0-1


[Site "https://www.chess.com"]

[Event "Titled Tuesday Blitz July 4 Late 2023"]
[White "Sanchez, Robert"]
[Black "Kostiukov, Alexandr"]
[WhiteFideId "2034360"]
[BlackFideId "14108100"]
[WhiteElo "2207"]
[BlackElo "2294"]
[Result "0-1"]
[Round "9"]
[TimeControl "180+2"]
[Date "2023.07.04"]
[WhiteClock "0:02:44"]
[BlackClock "0:02:53"]
[Board "110"]

1. e4 {[%clk 0:02:59]}  c5 {[%clk 0:02:59]} 2. d4 {[%clk 0:02:58]}  cxd4 {[%clk 0:02:59]} 3. c3 {[%clk 0:02:59]}  g6 {[%clk 0:02:59]} 4. Nf3 {[%clk 0:02:59]}  Bg7 {[%clk 0:02:59]} 5. Bc4 {[%clk 0:02:59]}  e6 {[%clk 0:02:58]} 6. cxd4 {[%clk 0:02:58]}  d5 {[%clk 0:02:57]} 7. exd5 {[%clk 0:02:59]}  exd5 {[%clk 0:02:58]} 8. Bb5+ {[%clk 0:02:58]}  Nc6 {[%clk 0:02:59]} 9. Ne5 {[%clk 0:02:58]}  Ne7 {[%clk 0:02:56]} 10. Bg5 {[%clk 0:02:51]}  f6 {[%clk 0:02:53]} 11. Nxc6 {[%clk 0:02:44]}  bxc6 {[%clk 0:02:53]} 0-1


[Site "https://www.chess.com"]

[Event "Titled Tuesday Blitz July 4 Late 2023"]
[White "Oliveira, Tiago Batista"]
[Black "Cardozo Munar, Carlos Eduardo"]
[WhiteFideId "2108291"]
[BlackFideId "4409477"]
[WhiteElo "2154"]
[BlackElo "2326"]
[Result "1-0"]
[Round "9"]
[TimeControl "180+2"]
[Date "2023.07.04"]
[WhiteClock "0:00:11"]
[BlackClock "0:01:15"]
[Board "114"]

1. d4 {[%clk 0:02:39]}  d5 {[%clk 0:02:54]} 2. c4 {[%clk 0:02:39]}  e5 {[%clk 0:02:49]} 3. dxe5 {[%clk 0:02:38]}  d4 {[%clk 0:02:48]} 4. Nf3 {[%clk 0:02:37]}  Nc6 {[%clk 0:02:48]} 5. g3 {[%clk 0:02:37]}  Nge7 {[%clk 0:02:47]} 6. Bg2 {[%clk 0:02:36]}  Ng6 {[%clk 0:02:48]} 7. O-O {[%clk 0:02:32]}  Ngxe5 {[%clk 0:02:48]} 8. Nbd2 {[%clk 0:02:30]}  Nxf3+ {[%clk 0:02:41]} 9. Nxf3 {[%clk 0:02:30]}  Be7 {[%clk 0:02:41]} 10. e3 {[%clk 0:02:19]}  dxe3 {[%clk 0:02:34]} 11. Bxe3 {[%clk 0:02:18]}  Qxd1 {[%clk 0:02:33]} 12. Raxd1 {[%clk 0:02:13]}  O-O {[%clk 0:02:34]} 13. Nd4 {[%clk 0:02:09]}  Nxd4 {[%clk 0:02:31]} 14. Bxd4 {[%clk 0:02:09]}  c6 {[%clk 0:02:32]} 15. Rfe1 {[%clk 0:02:04]}  Be6 {[%clk 0:02:32]} 16. b3 {[%clk 0:02:00]}  Rfd8 {[%clk 0:02:31]} 17. Bc3 {[%clk 0:01:56]}  h6 {[%clk 0:02:30]} 18. Bf3 {[%clk 0:01:47]}  Bc5 {[%clk 0:02:27]} 19. Kg2 {[%clk 0:01:41]}  a6 {[%clk 0:02:21]} 20. Ba5 {[%clk 0:01:14]}  Re8 {[%clk 0:02:18]} 21. Bc3 {[%clk 0:01:07]}  Rad8 {[%clk 0:02:16]} 22. Rxd8 {[%clk 0:01:02]}  Rxd8 {[%clk 0:02:15]} 23. Rd1 {[%clk 0:01:01]}  Rxd1 {[%clk 0:02:12]} 24. Bxd1 {[%clk 0:01:00]}  f6 {[%clk 0:02:12]} 25. f4 {[%clk 0:00:54]}  Kf7 {[%clk 0:02:12]} 26. g4 {[%clk 0:00:54]}  f5 {[%clk 0:02:06]} 27. h3 {[%clk 0:00:53]}  Be3 {[%clk 0:01:58]} 28. Kf3 {[%clk 0:00:50]}  Bc1 {[%clk 0:01:58]} 29. Bc2 {[%clk 0:00:47]}  fxg4+ {[%clk 0:01:56]} 30. hxg4 {[%clk 0:00:47]}  g6 {[%clk 0:01:49]} 31. f5 {[%clk 0:00:35]}  gxf5 {[%clk 0:01:47]} 32. Bxf5 {[%clk 0:00:28]}  b5 {[%clk 0:01:36]} 33. cxb5 {[%clk 0:00:22]}  axb5 {[%clk 0:01:36]} 34. Bxe6+ {[%clk 0:00:15]}  Kxe6 {[%clk 0:01:35]} 35. Ke4 {[%clk 0:00:15]}  c5 {[%clk 0:01:31]} 36. Bg7 {[%clk 0:00:14]}  Bg5 {[%clk 0:01:26]} 37. a4 {[%clk 0:00:14]}  b4 {[%clk 0:01:19]} 38. Bf8 {[%clk 0:00:13]}  Be7 {[%clk 0:01:11]} 39. Bxe7 {[%clk 0:00:13]}  Kxe7 {[%clk 0:01:12]} 40. Kd5 {[%clk 0:00:13]}  Kf6 {[%clk 0:01:10]} 41. Kxc5 {[%clk 0:00:13]}  Kg5 {[%clk 0:01:11]} 42. a5 {[%clk 0:00:13]}  Kxg4 {[%clk 0:01:12]} 43. a6 {[%clk 0:00:14]}  h5 {[%clk 0:01:13]} 44. a7 {[%clk 0:00:14]}  h4 {[%clk 0:01:14]} 45. a8=Q {[%clk 0:00:14]}  h3 {[%clk 0:01:13]} 46. Qh1 {[%clk 0:00:13]}  Kg3 {[%clk 0:01:13]} 47. Kxb4 {[%clk 0:00:14]}  h2 {[%clk 0:01:13]} 48. Kc3 {[%clk 0:00:14]}  Kf4 {[%clk 0:01:14]} 49. b4 {[%clk 0:00:14]}  Ke5 {[%clk 0:01:15]} 50. b5 {[%clk 0:00:15]}  Kd6 {[%clk 0:01:16]} 51. b6 {[%clk 0:00:15]}  Kd7 {[%clk 0:01:15]} 52. Qxh2 {[%clk 0:00:11]}  Kc8 {[%clk 0:01:15]} 53. Qc7# {[%clk 0:00:11]} 1-0


[Site "https://www.chess.com"]

[Event "Titled Tuesday Blitz July 4 Late 2023"]
[White "campochess"]
[Black "Kukavica, Tony"]
[BlackFideId "2062542"]
[WhiteElo "2124"]
[BlackElo "2287"]
[Result "0-1"]
[Round "9"]
[TimeControl "180+2"]
[Date "2023.07.04"]
[WhiteClock "0:01:02"]
[BlackClock "0:00:55"]
[Board "116"]

1. Nc3 {[%clk 0:02:52]}  g6 {[%clk 0:02:58]} 2. d4 {[%clk 0:02:51]}  Bg7 {[%clk 0:02:58]} 3. e4 {[%clk 0:02:51]}  b6 {[%clk 0:02:59]} 4. g3 {[%clk 0:02:48]}  Bb7 {[%clk 0:02:59]} 5. Bg2 {[%clk 0:02:48]}  e6 {[%clk 0:03:00]} 6. Nge2 {[%clk 0:02:47]}  d6 {[%clk 0:03:01]} 7. O-O {[%clk 0:02:47]}  Ne7 {[%clk 0:03:01]} 8. Bg5 {[%clk 0:02:46]}  O-O {[%clk 0:03:02]} 9. Qd2 {[%clk 0:02:46]}  Nd7 {[%clk 0:03:02]} 10. Rad1 {[%clk 0:02:42]}  f6 {[%clk 0:03:02]} 11. Bh6 {[%clk 0:02:39]}  Qe8 {[%clk 0:03:02]} 12. Bxg7 {[%clk 0:02:37]}  Kxg7 {[%clk 0:03:01]} 13. d5 {[%clk 0:02:36]}  e5 {[%clk 0:03:01]} 14. f4 {[%clk 0:02:33]}  a6 {[%clk 0:03:01]} 15. a4 {[%clk 0:02:32]}  Qf7 {[%clk 0:02:57]} 16. Bh3 {[%clk 0:02:31]}  f5 {[%clk 0:02:48]} 17. exf5 {[%clk 0:02:26]}  Nxf5 {[%clk 0:02:49]} 18. g4 {[%clk 0:02:20]}  Nh4 {[%clk 0:02:48]} 19. fxe5 {[%clk 0:02:19]}  Nf3+ {[%clk 0:02:48]} 20. Rxf3 {[%clk 0:02:19]}  Qxf3 {[%clk 0:02:47]} 21. Ng3 {[%clk 0:02:13]}  Nxe5 {[%clk 0:02:31]} 22. Nce4 {[%clk 0:02:11]}  Qxg3+ {[%clk 0:02:07]} 23. Nxg3 {[%clk 0:02:02]}  Nf3+ {[%clk 0:02:07]} 24. Kg2 {[%clk 0:01:59]}  Nxd2 {[%clk 0:02:07]} 25. Rxd2 {[%clk 0:01:59]}  Rae8 {[%clk 0:02:04]} 26. c4 {[%clk 0:01:58]}  Rf4 {[%clk 0:02:01]} 27. b3 {[%clk 0:01:56]}  Re3 {[%clk 0:01:56]} 28. Ne2 {[%clk 0:01:52]}  Rfe4 {[%clk 0:01:54]} 29. Ng3 {[%clk 0:01:43]}  Re5 {[%clk 0:01:52]} 30. g5 {[%clk 0:01:38]}  Rxb3 {[%clk 0:01:50]} 31. Be6 {[%clk 0:01:31]}  Rxg5 {[%clk 0:01:49]} 32. Rf2 {[%clk 0:01:30]}  a5 {[%clk 0:01:42]} 33. Rf7+ {[%clk 0:01:29]}  Kh6 {[%clk 0:01:41]} 34. Rxc7 {[%clk 0:01:28]}  Ba6 {[%clk 0:01:36]} 35. Bg8 {[%clk 0:01:27]}  Rg4 {[%clk 0:01:30]} 36. Rxh7+ {[%clk 0:01:22]}  Kg5 {[%clk 0:01:28]} 37. Rc7 {[%clk 0:01:13]}  Bxc4 {[%clk 0:01:22]} 38. Rc6 {[%clk 0:01:10]}  Rb2+ {[%clk 0:01:13]} 39. Kf3 {[%clk 0:01:05]}  Rb3+ {[%clk 0:01:02]} 40. Kg2 {[%clk 0:01:05]}  Rd4 {[%clk 0:00:55]} 41. Rxd6 {[%clk 0:01:02]}  Rd2+ {[%clk 0:00:55]} 42. Kh3 {[%clk 0:01:02]}  Bf1# {[%clk 0:00:55]} 0-1


[Site "https://www.chess.com"]

[Event "Titled Tuesday Blitz July 4 Late 2023"]
[White "Cardenas Carbajal, Nilson"]
[Black "Lutz, Igor Oscar"]
[WhiteFideId "8401128"]
[BlackFideId "2110806"]
[WhiteElo "2102"]
[BlackElo "1988"]
[Result "0-1"]
[Round "9"]
[TimeControl "180+2"]
[Date "2023.07.04"]
[WhiteClock "0:00:00"]
[BlackClock "0:00:07"]
[Board "121"]

1. e4 {[%clk 0:03:00]}  c5 {[%clk 0:02:53]} 2. d4 {[%clk 0:03:00]}  cxd4 {[%clk 0:02:53]} 3. c3 {[%clk 0:03:01]}  Nf6 {[%clk 0:02:53]} 4. e5 {[%clk 0:03:00]}  Nd5 {[%clk 0:02:54]} 5. Nf3 {[%clk 0:03:01]}  d6 {[%clk 0:02:52]} 6. cxd4 {[%clk 0:02:59]}  dxe5 {[%clk 0:02:52]} 7. dxe5 {[%clk 0:02:57]}  e6 {[%clk 0:02:45]} 8. a3 {[%clk 0:02:53]}  Nc6 {[%clk 0:02:45]} 9. Bd3 {[%clk 0:02:54]}  Qc7 {[%clk 0:02:17]} 10. Qe2 {[%clk 0:02:39]}  Bc5 {[%clk 0:02:09]} 11. Qe4 {[%clk 0:02:28]}  Bd7 {[%clk 0:01:47]} 12. O-O {[%clk 0:02:25]}  Nce7 {[%clk 0:01:36]} 13. Nc3 {[%clk 0:01:48]}  Bc6 {[%clk 0:01:31]} 14. Qg4 {[%clk 0:01:42]}  Ng6 {[%clk 0:01:18]} 15. Nxd5 {[%clk 0:01:19]}  Bxd5 {[%clk 0:01:17]} 16. Re1 {[%clk 0:01:18]}  Bxf3 {[%clk 0:00:58]} 17. Qxf3 {[%clk 0:01:15]}  Nxe5 {[%clk 0:00:56]} 18. Qg3 {[%clk 0:00:57]}  f6 {[%clk 0:00:31]} 19. Bf4 {[%clk 0:00:47]}  Bd6 {[%clk 0:00:29]} 20. Bb5+ {[%clk 0:00:45]}  Kf7 {[%clk 0:00:25]} 21. Rac1 {[%clk 0:00:44]}  Qb6 {[%clk 0:00:20]} 22. a4 {[%clk 0:00:21]}  Rac8 {[%clk 0:00:20]} 23. Rcd1 {[%clk 0:00:20]}  Bb8 {[%clk 0:00:18]} 24. Qh3 {[%clk 0:00:18]}  a6 {[%clk 0:00:16]} 25. Bf1 {[%clk 0:00:12]}  Ng6 {[%clk 0:00:16]} 26. Bxb8 {[%clk 0:00:11]}  Rxb8 {[%clk 0:00:16]} 27. Qc3 {[%clk 0:00:09]}  Rbd8 {[%clk 0:00:13]} 28. Bc4 {[%clk 0:00:09]}  Ne5 {[%clk 0:00:12]} 29. Ba2 {[%clk 0:00:05]}  Rxd1 {[%clk 0:00:12]} 30. Rxd1 {[%clk 0:00:06]}  Rd8 {[%clk 0:00:13]} 31. Re1 {[%clk 0:00:06]}  Qd6 {[%clk 0:00:12]} 32. h4 {[%clk 0:00:06]}  h5 {[%clk 0:00:11]} 33. Qg3 {[%clk 0:00:06]}  Qd2 {[%clk 0:00:09]} 34. Rf1 {[%clk 0:00:05]}  Qd3 {[%clk 0:00:08]} 35. Qh2 {[%clk 0:00:04]}  Qd6 {[%clk 0:00:08]} 36. Qf4 {[%clk 0:00:04]}  Ng4 {[%clk 0:00:08]} 37. Qf3 {[%clk 0:00:04]}  Qc6 {[%clk 0:00:07]} 38. Qg3 {[%clk 0:00:00]}  Qd6 {[%clk 0:00:07]} 0-1


[Site "https://www.chess.com"]

[Event "Titled Tuesday Blitz July 4 Late 2023"]
[White "Caruana, Fabiano"]
[Black "Andreikin, Dmitry"]
[WhiteFideId "2020009"]
[BlackFideId "4158814"]
[WhiteElo "3118"]
[BlackElo "2987"]
[Result "1/2-1/2"]
[Round "10"]
[TimeControl "180+2"]
[Date "2023.07.04"]
[WhiteClock "0:00:11"]
[BlackClock "0:00:05"]
[Board "2"]

1. e4 {[%clk 0:03:00]}  c5 {[%clk 0:02:59]} 2. Nf3 {[%clk 0:03:00]}  g6 {[%clk 0:02:59]} 3. c3 {[%clk 0:02:59]}  d5 {[%clk 0:02:58]} 4. exd5 {[%clk 0:02:58]}  Qxd5 {[%clk 0:02:59]} 5. d4 {[%clk 0:02:59]}  Bg7 {[%clk 0:02:59]} 6. Be3 {[%clk 0:02:57]}  Nf6 {[%clk 0:02:55]} 7. h3 {[%clk 0:02:54]}  O-O {[%clk 0:02:49]} 8. dxc5 {[%clk 0:02:51]}  Qxd1+ {[%clk 0:02:49]} 9. Kxd1 {[%clk 0:02:52]}  Rd8+ {[%clk 0:02:49]} 10. Nbd2 {[%clk 0:02:42]}  Nd5 {[%clk 0:02:48]} 11. Bd4 {[%clk 0:02:40]}  Bh6 {[%clk 0:02:41]} 12. Ke1 {[%clk 0:02:32]}  Nc6 {[%clk 0:02:38]} 13. Nc4 {[%clk 0:02:17]}  e5 {[%clk 0:02:10]} 14. Be3 {[%clk 0:02:14]}  Nxe3 {[%clk 0:02:04]} 15. fxe3 {[%clk 0:02:10]}  Be6 {[%clk 0:01:59]} 16. Kf2 {[%clk 0:02:11]}  a5 {[%clk 0:01:50]} 17. Nb6 {[%clk 0:02:03]}  Rab8 {[%clk 0:01:32]} 18. Bb5 {[%clk 0:02:03]}  Bf8 {[%clk 0:01:24]} 19. Bxc6 {[%clk 0:01:59]}  bxc6 {[%clk 0:01:16]} 20. b4 {[%clk 0:01:59]}  Rd3 {[%clk 0:01:11]} 21. Nxe5 {[%clk 0:01:27]}  Rxc3 {[%clk 0:01:11]} 22. Rhc1 {[%clk 0:01:16]}  axb4 {[%clk 0:00:44]} 23. Nxc6 {[%clk 0:01:15]}  Re8 {[%clk 0:00:22]} 24. Rxc3 {[%clk 0:00:21]}  bxc3 {[%clk 0:00:23]} 25. Na4 {[%clk 0:00:22]}  c2 {[%clk 0:00:16]} 26. Nd4 {[%clk 0:00:20]}  Bxa2 {[%clk 0:00:06]} 27. Nxc2 {[%clk 0:00:12]}  Bb3 {[%clk 0:00:06]} 28. Nd4 {[%clk 0:00:12]}  Bxa4 {[%clk 0:00:06]} 29. Rxa4 {[%clk 0:00:13]}  Bxc5 {[%clk 0:00:06]} 30. Rc4 {[%clk 0:00:11]}  Bf8 {[%clk 0:00:05]} 1/2-1/2


[Site "https://www.chess.com"]

[Event "Titled Tuesday Blitz July 4 Late 2023"]
[White "Kollars, Dmitrij"]
[Black "Bortnyk, Olexandr"]
[WhiteFideId "12909572"]
[BlackFideId "14120828"]
[WhiteElo "2983"]
[BlackElo "3040"]
[Result "0-1"]
[Round "10"]
[TimeControl "180+2"]
[Date "2023.07.04"]
[WhiteClock "0:00:00"]
[BlackClock "0:00:02"]
[Board "4"]

1. e4 {[%clk 0:03:00]}  Nf6 {[%clk 0:03:00]} 2. e5 {[%clk 0:03:01]}  Nd5 {[%clk 0:03:00]} 3. Nc3 {[%clk 0:02:57]}  Nxc3 {[%clk 0:03:00]} 4. dxc3 {[%clk 0:02:58]}  d6 {[%clk 0:03:01]} 5. Nf3 {[%clk 0:02:58]}  Nc6 {[%clk 0:03:01]} 6. Bf4 {[%clk 0:02:55]}  dxe5 {[%clk 0:02:45]} 7. Qxd8+ {[%clk 0:02:51]}  Nxd8 {[%clk 0:02:46]} 8. Bxe5 {[%clk 0:02:49]}  c6 {[%clk 0:02:45]} 9. O-O-O {[%clk 0:02:37]}  f6 {[%clk 0:02:45]} 10. Bc7 {[%clk 0:02:37]}  Bg4 {[%clk 0:02:28]} 11. Be2 {[%clk 0:02:30]}  e5 {[%clk 0:02:24]} 12. Bxd8 {[%clk 0:02:09]}  Rxd8 {[%clk 0:02:24]} 13. Rxd8+ {[%clk 0:01:57]}  Kxd8 {[%clk 0:02:25]} 14. Nxe5 {[%clk 0:01:58]}  Bxe2 {[%clk 0:01:45]} 15. Nf7+ {[%clk 0:01:58]}  Ke7 {[%clk 0:01:45]} 16. Nxh8 {[%clk 0:01:59]}  Bg4 {[%clk 0:01:35]} 17. Re1+ {[%clk 0:01:23]}  Be6 {[%clk 0:01:35]} 18. f4 {[%clk 0:01:24]}  g6 {[%clk 0:01:28]} 19. g4 {[%clk 0:01:18]}  Bh6 {[%clk 0:01:07]} 20. Re4 {[%clk 0:00:27]}  f5 {[%clk 0:01:06]} 21. Nxg6+ {[%clk 0:00:20]}  hxg6 {[%clk 0:01:05]} 22. gxf5 {[%clk 0:00:21]}  gxf5 {[%clk 0:01:06]} 23. Ra4 {[%clk 0:00:22]}  a6 {[%clk 0:01:04]} 24. Kd2 {[%clk 0:00:21]}  Bg7 {[%clk 0:00:47]} 25. Ke3 {[%clk 0:00:21]}  Bf6 {[%clk 0:00:45]} 26. Kf3 {[%clk 0:00:17]}  Bc8 {[%clk 0:00:42]} 27. Kg3 {[%clk 0:00:13]}  b5 {[%clk 0:00:40]} 28. Ra5 {[%clk 0:00:10]}  Kf7 {[%clk 0:00:26]} 29. c4 {[%clk 0:00:06]}  Bxb2 {[%clk 0:00:20]} 30. cxb5 {[%clk 0:00:06]}  cxb5 {[%clk 0:00:21]} 31. h4 {[%clk 0:00:02]}  Kg6 {[%clk 0:00:11]} 32. c4 {[%clk 0:00:02]}  bxc4 {[%clk 0:00:10]} 33. Rc5 {[%clk 0:00:03]}  Be6 {[%clk 0:00:09]} 34. Rc6 {[%clk 0:00:04]}  Kf7 {[%clk 0:00:10]} 35. h5 {[%clk 0:00:03]}  a5 {[%clk 0:00:02]} 36. h6 {[%clk 0:00:03]}  Bd4 {[%clk 0:00:01]} 37. h7 {[%clk 0:00:00]}  c3 {[%clk 0:00:02]} 0-1


[Site "https://www.chess.com"]

[Event "Titled Tuesday Blitz July 4 Late 2023"]
[White "Ibrahimli, Murad"]
[Black "Martinez Alcantara, Jose Eduardo"]
[WhiteFideId "13410229"]
[BlackFideId "3805662"]
[WhiteElo "2947"]
[BlackElo "3036"]
[Result "0-1"]
[Round "10"]
[TimeControl "180+2"]
[Date "2023.07.04"]
[WhiteClock "0:00:14"]
[BlackClock "0:00:10"]
[Board "5"]

1. d4 {[%clk 0:02:57]}  Nf6 {[%clk 0:03:00]} 2. c4 {[%clk 0:02:57]}  e6 {[%clk 0:03:01]} 3. Nc3 {[%clk 0:02:57]}  Bb4 {[%clk 0:03:02]} 4. e3 {[%clk 0:02:57]}  O-O {[%clk 0:03:02]} 5. Bd3 {[%clk 0:02:57]}  d5 {[%clk 0:03:02]} 6. Ne2 {[%clk 0:02:57]}  c5 {[%clk 0:02:58]} 7. O-O {[%clk 0:02:57]}  dxc4 {[%clk 0:02:58]} 8. Bxc4 {[%clk 0:02:57]}  cxd4 {[%clk 0:02:56]} 9. exd4 {[%clk 0:02:58]}  Nc6 {[%clk 0:02:54]} 10. Qd3 {[%clk 0:02:58]}  Bd6 {[%clk 0:02:53]} 11. Rd1 {[%clk 0:02:52]}  Na5 {[%clk 0:02:43]} 12. Bb5 {[%clk 0:02:50]}  h6 {[%clk 0:02:33]} 13. Ba4 {[%clk 0:02:46]}  Nc6 {[%clk 0:02:29]} 14. a3 {[%clk 0:02:45]}  Ne7 {[%clk 0:02:25]} 15. Bc2 {[%clk 0:02:45]}  Bd7 {[%clk 0:02:22]} 16. Ng3 {[%clk 0:02:19]}  Ng6 {[%clk 0:02:21]} 17. d5 {[%clk 0:02:15]}  Be5 {[%clk 0:01:59]} 18. dxe6 {[%clk 0:01:56]}  Bxe6 {[%clk 0:02:00]} 19. Qe2 {[%clk 0:01:47]}  Qc7 {[%clk 0:01:56]} 20. Nb5 {[%clk 0:01:47]}  Qc5 {[%clk 0:01:37]} 21. Be3 {[%clk 0:01:42]}  Qc4 {[%clk 0:01:29]} 22. Bd3 {[%clk 0:01:41]}  Qg4 {[%clk 0:01:29]} 23. Qxg4 {[%clk 0:01:38]}  Nxg4 {[%clk 0:01:26]} 24. Bd4 {[%clk 0:01:39]}  a6 {[%clk 0:01:22]} 25. Bxg6 {[%clk 0:01:36]}  fxg6 {[%clk 0:01:14]} 26. Bxe5 {[%clk 0:01:35]}  Nxe5 {[%clk 0:01:15]} 27. Nc7 {[%clk 0:01:34]}  Bb3 {[%clk 0:01:12]} 28. Nxa8 {[%clk 0:01:17]}  Bxd1 {[%clk 0:01:12]} 29. Rxd1 {[%clk 0:01:18]}  Rxa8 {[%clk 0:01:12]} 30. Ne4 {[%clk 0:01:12]}  Rc8 {[%clk 0:01:12]} 31. h3 {[%clk 0:01:10]}  Rc7 {[%clk 0:00:48]} 32. b3 {[%clk 0:01:10]}  Nf7 {[%clk 0:00:45]} 33. f3 {[%clk 0:01:02]}  g5 {[%clk 0:00:45]} 34. Kh2 {[%clk 0:01:02]}  Kf8 {[%clk 0:00:45]} 35. Kg3 {[%clk 0:01:02]}  Ke7 {[%clk 0:00:45]} 36. Re1 {[%clk 0:01:01]}  Kf8 {[%clk 0:00:45]} 37. Kg4 {[%clk 0:01:00]}  Rc2 {[%clk 0:00:42]} 38. Kg3 {[%clk 0:00:59]}  h5 {[%clk 0:00:38]} 39. Rd1 {[%clk 0:00:58]}  h4+ {[%clk 0:00:37]} 40. Kh2 {[%clk 0:00:58]}  Ra2 {[%clk 0:00:22]} 41. a4 {[%clk 0:00:57]}  Rb2 {[%clk 0:00:22]} 42. Rd3 {[%clk 0:00:49]}  Ke7 {[%clk 0:00:20]} 43. Rc3 {[%clk 0:00:49]}  b5 {[%clk 0:00:19]} 44. axb5 {[%clk 0:00:45]}  axb5 {[%clk 0:00:20]} 45. Rc7+ {[%clk 0:00:44]}  Kf8 {[%clk 0:00:16]} 46. Nc5 {[%clk 0:00:36]}  Kg8 {[%clk 0:00:14]} 47. Re7 {[%clk 0:00:30]}  Rc2 {[%clk 0:00:13]} 48. Ne6 {[%clk 0:00:25]}  Rb2 {[%clk 0:00:13]} 49. Re8+ {[%clk 0:00:23]}  Kh7 {[%clk 0:00:13]} 50. Re7 {[%clk 0:00:24]}  Kg8 {[%clk 0:00:13]} 51. Nd4 {[%clk 0:00:25]}  b4 {[%clk 0:00:11]} 52. Rb7 {[%clk 0:00:24]}  Ne5 {[%clk 0:00:10]} 53. Rxb4 {[%clk 0:00:17]}  Nd3 {[%clk 0:00:10]} 54. Rb8+ {[%clk 0:00:17]}  Kh7 {[%clk 0:00:11]} 55. Ne6 {[%clk 0:00:17]}  Ne1 {[%clk 0:00:10]} 56. Nxg5+ {[%clk 0:00:17]}  Kg6 {[%clk 0:00:10]} 57. Ne4 {[%clk 0:00:14]}  Nxf3+ {[%clk 0:00:10]} 0-1


[Site "https://www.chess.com"]